Workbook

Sheet ERP
A1: Serial | B1: Month | C1: Bse200 | D1: Risk Free Rate | E1: Mean Reversion Period (Y) | F1: Required Rtn Equity | G1: Equity Risk Premium | I1: Effective Date | J1: RBI Reverse Repo Rate %
A2: 1 | B2: 1991-01 | C2: 133 | I2: 2001-04-27 | J2: 0.0675
A3: =A2+1 -> 2 | B3: 1991-02 | C3: 142.5 | I3: 2001-05-28 | J3: 0.065
A4: 3 | B4: 1991-03 | C4: 160.4 | I4: 2002-03-05 | J4: 0.06
A5: 4 | B5: 1991-04 | C5: 169 | I5: 2002-06-27 | J5: 0.0575
A6: 5 | B6: 1991-05 | C6: 168.75 | I6: 2002-10-29 | J6: 0.055
A7: 6 | B7: 1991-06 | C7: 168 | I7: 2003-03-03 | J7: 0.05
A8: 7 | B8: 1991-07 | C8: 191.25 | I8: 2003-08-25 | J8: 0.045
A9: 8 | B9: 1991-08 | C9: 218.4 | I9: 2004-10-27 | J9: 0.0475
A10: 9 | B10: 1991-09 | C10: 228.75 | I10: 2005-04-29 | J10: 0.05
A11: 10 | B11: 1991-10 | C11: 221.75 | I11: 2005-10-26 | J11: 0.0525
A12: 11 | B12: 1991-11 | C12: 231.8 | I12: 2006-01-24 | J12: 0.055
A13: 12 | B13: 1991-12 | C13: 226.75 | I13: 2006-06-08 | J13: 0.0575
A14: 13 | B14: 1992-01 | C14: 248.5 | I14: 2006-07-25 | J14: 0.06
A15: 14 | B15: 1992-02 | C15: 300.6 | I15: 2008-12-08 | J15: 0.05
A16: 15 | B16: 1992-03 | C16: 454.5 | I16: 2009-01-05 | J16: 0.04
A17: 16 | B17: 1992-04 | C17: 561.25 | I17: 2009-03-05 | J17: 0.035
A18: 17 | B18: 1992-05 | C18: 429.4 | I18: 2009-04-21 | J18: 0.0325
A19: 18 | B19: 1992-06 | C19: 370 | I19: 2010-03-19 | J19: 0.035
A20: 19 | B20: 1992-07 | C20: 337.5 | I20: 2010-04-20 | J20: 0.0375
A21: 20 | B21: 1992-08 | C21: 336.8 | I21: 2010-07-02 | J21: 0.04
A22: 21 | B22: 1992-09 | C22: 390 | I22: 2010-07-27 | J22: 0.045
A23: 22 | B23: 1992-10 | C23: 378 | I23: 2010-09-16 | J23: 0.05
A24: 23 | B24: 1992-11 | C24: 322.5 | I24: 2010-11-02 | J24: 0.0525
A25: 24 | B25: 1992-12 | C25: 313.75 | I25: 2011-01-25 | J25: 0.055
A26: 25 | B26: 1993-01 | C26: 302.75 | I26: 2011-03-17 | J26: 0.0575
A27: 26 | B27: 1993-02 | C27: 307.5 | I27: 2011-05-03 | J27: 0.0625
A28: 27 | B28: 1993-03 | C28: 260.25 | I28: 2011-06-16 | J28: 0.065
A29: 28 | B29: 1993-04 | C29: 236.5 | I29: 2011-07-26 | J29: 0.07
A30: 29 | B30: 1993-05 | C30: 242.8 | I30: 2011-09-16 | J30: 0.0725
A31: 30 | B31: 1993-06 | C31: 254.5 | I31: 2011-10-25 | J31: 0.075
A32: 31 | B32: 1993-07 | C32: 247.4 | I32: 2012-04-17 | J32: 0.07
A33: 32 | B33: 1993-08 | C33: 292 | I33: 2013-01-29 | J33: 0.0675
A34: 33 | B34: 1993-09 | C34: 321.75 | I34: 2013-03-19 | J34: 0.065
A35: 34 | B35: 1993-10 | C35: 316.8 | I35: 2013-05-03 | J35: 0.0625
A36: 35 | B36: 1993-11 | C36: 336.25 | I36: 2013-09-20 | J36: 0.065
A37: 36 | B37: 1993-12 | C37: 398.75 | I37: 2013-10-29 | J37: 0.0675
A38: 37 | B38: 1994-01 | C38: 481.75 | I38: 2014-01-28 | J38: 0.07
A39: 38 | B39: 1994-02 | C39: 483 | I39: 2015-01-15 | J39: 0.0675
A40: 39 | B40: 1994-03 | C40: 456 | I40: 2015-03-04 | J40: 0.065
A41: 40 | B41: 1994-04 | C41: 462 | I41: 2015-06-02 | J41: 0.0625
A42: 41 | B42: 1994-05 | C42: 450.5 | I42: 2015-09-29 | J42: 0.0575
A43: 42 | B43: 1994-06 | C43: 486.5 | I43: 2016-04-05 | J43: 0.06
A44: 43 | B44: 1994-07 | C44: 489.2 | I44: 2016-10-04 | J44: 0.0575
A45: 44 | B45: 1994-08 | C45: 513 | I45: 2017-04-06 | J45: 0.06
A46: 45 | B46: 1994-09 | C46: 519.5
A47: 46 | B47: 1994-10 | C47: 488.4
A48: 47 | B48: 1994-11 | C48: 470.25
A49: 48 | B49: 1994-12 | C49: 446.4
A50: 49 | B50: 1995-01 | C50: 410
A51: 50 | B51: 1995-02 | C51: 387.5
A52: 51 | B52: 1995-03 | C52: 383
A53: 52 | B53: 1995-04 | C53: 371
A54: 53 | B54: 1995-05 | C54: 353
A55: 54 | B55: 1995-06 | C55: 360.5
A56: 55 | B56: 1995-07 | C56: 352.6
A57: 56 | B57: 1995-08 | C57: 355
A58: 57 | B58: 1995-09 | C58: 348
A59: 58 | B59: 1995-10 | C59: 355.75
A60: 59 | B60: 1995-11 | C60: 323
A61: 60 | B61: 1995-12 | C61: 309.8
A62: 61 | B62: 1996-01 | C62: 299.25
A63: 62 | B63: 1996-02 | C63: 344.75
A64: 63 | B64: 1996-03 | C64: 342.8
A65: 64 | B65: 1996-04 | C65: 373.25
A66: 65 | B66: 1996-05 | C66: 386.75
A67: =A66+1 -> 66 | B67: 1996-06 | C67: 394.8
A68: 67 | B68: 1996-07 | C68: 377.25
A69: 68 | B69: 1996-08 | C69: 351
A70: 69 | B70: 1996-09 | C70: 336.75
A71: 70 | B71: 1996-10 | C71: 312.25
A72: 71 | B72: 1996-11 | C72: 300.6
A73: 72 | B73: 1996-12 | C73: 295
A74: 73 | B74: 1997-01 | C74: 332.75
A75: 74 | B75: 1997-02 | C75: 333
A76: 75 | B76: 1997-03 | C76: 359.8
A77: 76 | B77: 1997-04 | C77: 352.75
A78: 77 | B78: 1997-05 | C78: 363
A79: 78 | B79: 1997-06 | C79: 383
A80: 79 | B80: 1997-07 | C80: 407.25
A81: 80 | B81: 1997-08 | C81: 409
A82: 81 | B82: 1997-09 | C82: 383.75
A83: 82 | B83: 1997-10 | C83: 385
A84: 83 | B84: 1997-11 | C84: 354.8
A85: 84 | B85: 1997-12 | C85: 339
A86: 85 | B86: 1998-01 | C86: 336.4
A87: 86 | B87: 1998-02 | C87: 329.5
A88: 87 | B88: 1998-03 | C88: 363.75
A89: 88 | B89: 1998-04 | C89: 404.5
A90: 89 | B90: 1998-05 | C90: 390
A91: 90 | B91: 1998-06 | C91: 327.5
A92: 91 | B92: 1998-07 | C92: 327.75
A93: 92 | B93: 1998-08 | C93: 311
A94: 93 | B94: 1998-09 | C94: 316.75
A95: 94 | B95: 1998-10 | C95: 300.8
A96: 95 | B96: 1998-11 | C96: 299
A97: 96 | B97: 1998-12 | C97: 300
A98: 97 | B98: 1999-01 | C98: 333.2
A99: 98 | B99: 1999-02 | C99: 335
A100: 99 | B100: 1999-03 | C100: 368.75
A101: 100 | B101: 1999-04 | C101: 349
A102: 101 | B102: 1999-05 | C102: 372.2
A103: 102 | B103: 1999-06 | C103: 399.25
A104: 103 | B104: 1999-07 | C104: 443.2
A105: 104 | B105: 1999-08 | C105: 474
A106: 105 | B106: 1999-09 | C106: 495
A107: 106 | B107: 1999-10 | C107: 517.8
A108: 107 | B108: 1999-11 | C108: 507
A109: 108 | B109: 1999-12 | C109: 552.75
A110: 109 | B110: 2000-01 | C110: 623.6
A111: 110 | B111: 2000-02 | C111: 737.5
A112: 111 | B112: 2000-03 | C112: 660.25
A113: 112 | B113: 2000-04 | C113: 577.4
A114: 113 | B114: 2000-05 | C114: 455
A115: 114 | B115: 2000-06 | C115: 500
A116: 115 | B116: 2000-07 | C116: 504.2
A117: 116 | B117: 2000-08 | C117: 460.75
A118: 117 | B118: 2000-09 | C118: 473.6
A119: 118 | B119: 2000-10 | C119: 412.75
A120: 119 | B120: 2000-11 | C120: 429.75
A121: 120 | B121: 2000-12 | C121: 448.2
A122: 121 | B122: 2001-01 | C122: 463.5
A123: 122 | B123: 2001-02 | C123: 475
A124: 123 | B124: 2001-03 | C124: 394.2
A125: 124 | B125: 2001-04 | C125: 350.75
A126: 125 | B126: 2001-05 | C126: 378.5
A127: 126 | B127: 2001-06 | C127: 366
A128: 127 | B128: 2001-07 | C128: 345.75
A129: 128 | B129: 2001-08 | C129: 342.75
A130: 129 | B130: 2001-09 | C130: 303.2
A131: =A130+1 -> 130 | B131: 2001-10 | C131: 300.25
A132: 131 | B132: 2001-11 | C132: 324
A133: 132 | B133: 2001-12 | C133: 345.4
A134: 133 | B134: 2002-01 | C134: 351.5
A135: 134 | B135: 2002-02 | C135: 380
A136: 135 | B136: 2002-03 | C136: 397.6
A137: 136 | B137: 2002-04 | C137: 403.5
A138: 137 | B138: 2002-05 | C138: 400.25
A139: 138 | B139: 2002-06 | C139: 391
A140: 139 | B140: 2002-07 | C140: 389.75
A141: 140 | B141: 2002-08 | C141: 370
A142: 141 | B142: 2002-09 | C142: 364.25
A143: 142 | B143: 2002-10 | C143: 355
A144: 143 | B144: 2002-11 | C144: 363.6
A145: 144 | B145: 2002-12 | C145: 391.5
A146: 145 | B146: 2003-01 | C146: 393
A147: 146 | B147: 2003-02 | C147: 385
A148: 147 | B148: 2003-03 | C148: 375.2
A149: 148 | B149: 2003-04 | C149: 359.25
A150: 149 | B150: 2003-05 | C150: 378.4
A151: 150 | B151: 2003-06 | C151: 433.25
A152: 151 | B152: 2003-07 | C152: 459.75
A153: 152 | B153: 2003-08 | C153: 512.6
A154: 153 | B154: 2003-09 | C154: 555.25
A155: 154 | B155: 2003-10 | C155: 604.75
A156: 155 | B156: 2003-11 | C156: 627.6
A157: 156 | B157: 2003-12 | C157: 704.25
A158: 157 | B158: 2004-01 | C158: 776.4
A159: 158 | B159: 2004-02 | C159: 747
A160: 159 | B160: 2004-03 | C160: 734
A161: 160 | B161: 2004-04 | C161: 778
A162: 161 | B162: 2004-05 | C162: 690
A163: 162 | B163: 2004-06 | C163: 622.75
A164: 163 | B164: 2004-07 | C164: 651.2
A165: 164 | B165: 2004-08 | C165: 669.25
A166: 165 | B166: 2004-09 | C166: 709.5
A167: 166 | B167: 2004-10 | C167: 749.2
A168: 167 | B168: 2004-11 | C168: 784.5
A169: 168 | B169: 2004-12 | C169: 845.75
A170: 169 | B170: 2005-01 | C170: 848.2
A171: 170 | B171: 2005-02 | C171: 885
A172: 171 | B172: 2005-03 | C172: 899.25
A173: 172 | B173: 2005-04 | C173: 852.6
A174: 173 | B174: 2005-05 | C174: 861.75
A175: 174 | B175: 2005-06 | C175: 901.75
A176: 175 | B176: 2005-07 | C176: 948.6
A177: 176 | B177: 2005-08 | C177: 1004.25
A178: 177 | B178: 2005-09 | C178: 1049
A179: 178 | B179: 2005-10 | C179: 1045.8
A180: 179 | B180: 2005-11 | C180: 1078.25
A181: 180 | B181: 2005-12 | C181: 1162
A182: 181 | B182: 2006-01 | C182: 1221
A183: 182 | B183: 2006-02 | C183: 1262.25
A184: 183 | B184: 2006-03 | C184: 1353
A185: 184 | B185: 2006-04 | C185: 1451.8
A186: 185 | B186: 2006-05 | C186: 1438.5
A187: 186 | B187: 2006-06 | C187: 1227.25
A188: 187 | B188: 2006-07 | C188: 1252.2
A189: 188 | B189: 2006-08 | C189: 1348.75
A190: 189 | B190: 2006-09 | C190: 1450.2
A191: 190 | B191: 2006-10 | C191: 1529.5
A192: 191 | B192: 2006-11 | C192: 1611
A193: 192 | B193: 2006-12 | C193: 1643.6
A194: 193 | B194: 2007-01 | C194: 1690.25
A195: =A194+1 -> 194 | B195: 2007-02 | C195: 1695.25
A196: 195 | B196: 2007-03 | C196: 1534.6
A197: 196 | B197: 2007-04 | C197: 1612.5
A198: 197 | B198: 2007-05 | C198: 1706.5 | D198: =VLOOKUP(DATE(VALUE(MID(B198,1,4)),VALUE(MID(B198,6,2)),1),I:J,2,TRUE) -> 0.06 | E198: =VALUE(MID(B198,1,4))-VALUE(MID(B$2,1,4)) -> 16 | F198: =RATE(E198,0,-C198,EXP(FORECAST(A198+E198*12,LN(C$2:C198),A$2:A198))) + 1.25% -> 0.06168436803 | G198: =F198-D198 -> 0.00168436803
A199: 198 | B199: 2007-06 | C199: 1759.4 | D199: 0.06 | E199: 16 | F199: =RATE(E199,0,-C199,EXP(FORECAST(A199+E199*12,LN(C$2:C199),A$2:A199))) + 1.25% -> 0.06222708629 | G199: =F199-D199 -> 0.002227086286
A200: 199 | B200: 2007-07 | C200: 1871.25 | D200: 0.06 | E200: 16 | F200: =RATE(E200,0,-C200,EXP(FORECAST(A200+E200*12,LN(C$2:C200),A$2:A200))) + 1.25% -> 0.06085301546 | G200: 0.0008530154624
... 120 more rows

Sheet Beta
A1: Week | B1: Date | C1: Stock Price | D1: Stock Returns | E1: BSE200 Index | F1: BSE200 Returns | G1: Beta | H1: Moving Avg | I1: Beta Forecast
A2: 1 | B2: 2013-07-20 | C2: 644.099976
A3: =A2+1 -> 2 | B3: 2013-07-27 | C3: 631.25 | D3: -0.1353896868
A4: 3 | B4: 2013-08-03 | C4: 610.5 | D4: -0.1599945534 | E4: 2238 | F4: -0.0411311054
A5: 4 | B5: 2013-08-10 | C5: 587.900024 | D5: -0.08364402658 | E5: 2204 | F5: -0.01519213584
A6: 5 | B6: 2013-08-17 | C6: 607.549988 | D6: -0.0872103308 | E6: 2188 | F6: -0.007259528131
A7: 6 | B7: 2013-08-24 | C7: 594 | D7: 0.00484496124 | E7: 2170 | F7: -0.008226691042
A8: 7 | B8: 2013-08-31 | C8: 616.200012 | D8: -0.06171648987 | E8: 2168 | F8: -0.0009216589862
A9: 8 | B9: 2013-09-07 | C9: 629.200012 | D9: 0.2034943474 | E9: 2246 | F9: 0.03597785978
A10: 9 | B10: 2013-09-14 | C10: 659.049988 | D10: -0.03962425278 | E10: 2312 | F10: 0.02938557435
A11: 10 | B11: 2013-09-21 | C11: 608.900024 | D11: 0.2671171972 | E11: 2373 | F11: 0.02638408304
A12: 11 | B12: 2013-09-28 | C12: 640.450012 | D12: -0.1448421053 | E12: 2316 | F12: -0.02402022756
A13: 12 | B13: 2013-10-05 | C13: 661.299988 | D13: 0.03462990317 | E13: 2346 | F13: 0.01295336788
A14: 13 | B14: 2013-10-12 | C14: 676.599976 | D14: 0.1015228426 | E14: 2413 | F14: 0.02855924979
A15: 14 | B15: 2013-10-19 | C15: 672.549988 | D15: -0.002304147465 | E15: 2444 | F15: 0.01284707833
A16: 15 | B16: 2013-10-26 | C16: 683.799988 | D16: 0.02598152425 | E16: 2434 | F16: -0.004091653028
A17: 16 | B17: 2013-11-02 | C17: 652.5 | D17: 0.06373100732 | E17: 2501 | F17: 0.02752670501
A18: 17 | B18: 2013-11-09 | C18: 642.200012 | D18: -0.06401269673 | E18: 2446 | F18: -0.02199120352
A19: 18 | B19: 2013-11-16 | C19: 642.150024 | D19: -0.01017380246 | E19: 2416 | F19: -0.01226492232
A20: 19 | B20: 2013-11-23 | C20: 661.299988 | D20: -0.01627408994 | E20: 2394 | F20: -0.009105960265
A21: 20 | B21: 2013-11-30 | C21: 682.700012 | D21: 0.0700914236 | E21: 2464 | F21: 0.02923976608
A22: 21 | B22: 2013-12-07 | C22: 689.950012 | D22: 0.06346623271 | E22: 2495 | F22: 0.01258116883
A23: 22 | B23: 2013-12-14 | C23: 664.599976 | D23: -0.06630961489 | E23: 2455 | F23: -0.01603206413
A24: 23 | B24: 2013-12-21 | C24: 669.650024 | D24: 0.01188199945 | E24: 2508 | F24: 0.0215885947
A25: 24 | B25: 2013-12-28 | C25: 663.099976 | D25: 0.008908084762 | E25: 2531 | F25: 0.009170653907
A26: 25 | B26: 2014-01-04 | C26: 662.049988 | D26: -0.008695652174 | E26: 2498 | F26: -0.01303832477
A27: 26 | B27: 2014-01-11 | C27: 665 | D27: -0.07435897436 | E27: 2478 | F27: -0.008006405124
A28: 27 | B28: 2014-01-18 | C28: 673.400024 | D28: 0.02507654177 | E28: 2495 | F28: 0.006860371267
A29: 28 | B29: 2014-01-25 | C29: 628.5 | D29: -0.0109515005 | E29: 2492 | F29: -0.00120240481
A30: 29 | B30: 2014-02-01 | C30: 647.75 | D30: -0.114322692 | E30: 2426 | F30: -0.0264847512
A31: 30 | B31: 2014-02-08 | C31: 641.799988 | D31: 0.003409644423 | E31: 2420 | F31: -0.002473206925
A32: 31 | B32: 2014-02-15 | C32: 664.400024 | D32: -0.02766990291 | E32: 2410 | F32: -0.004132231405
A33: 32 | B33: 2014-02-22 | C33: 669.599976 | D33: 0.01813945748 | E33: 2450 | F33: 0.01659751037
A34: 33 | B34: 2014-03-01 | C34: 711.450012 | D34: -0.003759398496 | E34: 2495 | F34: 0.01836734694
A35: 34 | B35: 2014-03-08 | C35: 732.150024 | D35: 0.2328137818 | E35: 2589 | F35: 0.0376753507
A36: 35 | B36: 2014-03-15 | C36: 733.849976 | D36: -0.05256853873 | E36: 2578 | F36: -0.004248744689
A37: 36 | B37: 2014-03-22 | C37: 744.950012 | D37: 0.0123612867 | E37: 2587 | F37: 0.003491078355 | G37: =COVAR(D8:D37,F8:F37)/VARP(F8:F37) -> 3.875964467
A38: 37 | B38: 2014-03-29 | C38: 725.450012 | D38: 0.1236298044 | E38: 2670 | F38: 0.0320834944 | G38: 3.85648398
A39: 38 | B39: 2014-04-05 | C39: 738.150024 | D39: 0.04272659916 | E39: 2684 | F39: 0.005243445693 | G39: 3.632192133
A40: 39 | B40: 2014-04-12 | C40: 718.700012 | D40: 0.04914732354 | E40: 2722 | F40: 0.01415797317 | G40: 4.000813103
A41: 40 | B41: 2014-04-19 | C41: 726.400024 | D41: -0.05881024946 | E41: 2719 | F41: -0.001102130786 | G41: 3.622360995
A42: 41 | B42: 2014-04-26 | C42: 717.099976 | D42: 0.1226912929 | E42: 2725 | F42: 0.002206693637 | G42: 3.386628535
A43: 42 | B43: 2014-05-03 | C43: 756.799988 | D43: -0.05234483495 | E43: 2691 | F43: -0.01247706422 | G43: 3.41054676
A44: 43 | B44: 2014-05-10 | C44: 804.700012 | D44: 0.09108330515 | E44: 2751 | F44: 0.02229654404 | G44: 3.430141184
A45: 44 | B45: 2014-05-17 | C45: 789.650024 | D45: 0.1242896993 | E45: 2898 | F45: 0.0534351145 | G45: 3.193059095
A46: 45 | B46: 2014-05-24 | C46: 792.75 | D46: 0.03684984378 | E46: 3014 | F46: 0.04002760524 | G46: 2.970127883
A47: 46 | B47: 2014-05-31 | C47: 815.25 | D47: 0.00939466454 | E47: 2951 | F47: -0.02090245521 | G47: 2.822123888
A48: 47 | B48: 2014-06-07 | C48: 835.400024 | D48: 0.02037053297 | E48: 3109 | F48: 0.05354117248 | G48: 2.353248019
A49: 48 | B49: 2014-06-14 | C49: 821.950012 | D49: -0.09233284571 | E49: 3074 | F49: -0.01125763911 | G49: 2.484471932
A50: 49 | B50: 2014-06-21 | C50: 816.200012 | D50: 0.02645051195 | E50: 3062 | F50: -0.003903708523 | G50: 2.459601951
A51: 50 | B51: 2014-06-28 | C51: 856.650024 | D51: -0.01496259352 | E51: 3080 | F51: 0.005878510777 | G51: 2.461254421
A52: 51 | B52: 2014-07-05 | C52: 811.799988 | D52: 0.04500703235 | E52: 3186 | F52: 0.03441558442 | G52: 2.376766771
A53: 52 | B53: 2014-07-12 | C53: 832.450012 | D53: -0.08488111261 | E53: 3039 | F53: -0.0461393597 | G53: 2.234251474
A54: 53 | B54: 2014-07-19 | C54: 835.5 | D54: 0.08569467595 | E54: 3133 | F54: 0.03093122738 | G54: 2.293429325
A55: 54 | B55: 2014-07-26 | C55: 815.450012 | D55: -0.02664137993 | E55: 3161 | F55: 0.00893712097 | G55: 2.290776522
A56: 55 | B56: 2014-08-02 | C56: 796.150024 | D56: -0.005010205975 | E56: 3103 | F56: -0.01834862385 | G56: 2.256680266
A57: 56 | B57: 2014-08-09 | C57: 826.700012 | D57: -0.02769488997 | E57: 3084 | F57: -0.006123106671 | G57: 2.213119773
A58: 57 | B58: 2014-08-16 | C58: 846.75 | D58: 0.03625203798 | E58: 3161 | F58: 0.02496757458 | G58: 2.194202906
A59: 58 | B59: 2014-08-23 | C59: 843.549988 | D59: 0.08061082832 | E59: 3227 | F59: 0.02087946852 | G59: 2.216295943
A60: 59 | B60: 2014-08-30 | C60: 848.450012 | D60: -0.02081192189 | E60: 3234 | F60: 0.002169197397 | G60: 2.092560439
A61: 60 | B61: 2014-09-06 | C61: 855.700012 | D61: 0.0698854194 | E61: 3303 | F61: 0.02133580705 | G61: 2.11448275
A62: 61 | B62: 2014-09-13 | C62: 860.25 | D62: 0.03474493133 | E62: 3329 | F62: 0.00787163185 | G62: 2.088436019
A63: 62 | B63: 2014-09-20 | C63: 871.650024 | D63: -0.07987674804 | E63: 3319 | F63: -0.003003905077 | G63: 2.168289651
A64: 63 | B64: 2014-09-27 | C64: 868 | D64: -0.01494075219 | E64: 3247 | F64: -0.02169328111 | G64: 2.134982332
A65: 64 | B65: 2014-10-04 | C65: 867.299988 | D65: -0.0270223152 | E65: 3243 | F65: -0.001231906375 | G65: 1.854615997
A66: 65 | B66: 2014-10-11 | C66: 885.25 | D66: 0.02544346891 | E66: 3208 | F66: -0.0107924761 | G66: 1.764410452
A67: =A66+1 -> 66 | B67: 2014-10-18 | C67: 893.650024 | D67: 0.04490651756 | E67: 3173 | F67: -0.01091022444 | G67: 1.694846467
A68: 67 | B68: 2014-10-25 | C68: 911.849976 | D68: 0.0385451505 | E68: 3278 | F68: 0.03309171131 | G68: 1.552745428
A69: 68 | B69: 2014-11-01 | C69: 899.450012 | D69: 0.1016021254 | E69: 3392 | F69: 0.03477730323 | G69: 1.628495174
A70: 69 | B70: 2014-11-08 | C70: 930.099976 | D70: -0.01147409194 | E70: 3408 | F70: 0.004716981132 | G70: 1.624600947
A71: 70 | B71: 2014-11-15 | C71: 932.849976 | D71: 0.02558036374 | E71: 3439 | F71: 0.009096244131 | G71: 1.590393216
A72: 71 | B72: 2014-11-22 | C72: 957.150024 | D72: 0.01412918108 | E72: 3472 | F72: 0.009595812736 | G72: 1.633533343
A73: 72 | B73: 2014-11-29 | C73: 942.75 | D73: 0.009951663349 | E73: 3510 | F73: 0.01094470046 | G73: 1.586067318
A74: 73 | B74: 2014-12-06 | C74: 931.5 | D74: 0.05989583333 | E74: 3514 | F74: 0.00113960114 | G74: 1.512236425
A75: 74 | B75: 2014-12-13 | C75: 941.450012 | D75: -0.07052261106 | E75: 3387 | F75: -0.03614114969 | G75: 1.437907921
A76: 75 | B76: 2014-12-20 | C76: 948.650024 | D76: 0.03807958848 | E76: 3381 | F76: -0.001771479185 | G76: 1.479655257
A77: 76 | B77: 2014-12-27 | C77: 965.299988 | D77: 0.02085340674 | E77: 3380 | F77: -0.0002957704821 | G77: 1.543601911
A78: 77 | B78: 2015-01-03 | C78: 975.650024 | D78: 0.06890042473 | E78: 3474 | F78: 0.02781065089 | G78: 1.874013903
A79: 78 | B79: 2015-01-10 | C79: 1001.349976 | D79: -0.03544623147 | E79: 3431 | F79: -0.01237766264 | G79: 1.797976571
A80: 79 | B80: 2015-01-17 | C80: 1042.800049 | D80: 0.05008827568 | E80: 3526 | F80: 0.02768872049 | G80: 1.805712385
A81: 80 | B81: 2015-01-24 | C81: 1077.349976 | D81: 0.09010523694 | E81: 3640 | F81: 0.03233125355 | G81: 1.860795317
A82: 81 | B82: 2015-01-31 | C82: 1053.5 | D82: -0.01462355764 | E82: 3641 | F82: 0.0002747252747 | G82: 1.934543159
A83: 82 | B83: 2015-02-07 | C83: 1065.800049 | D83: -0.06110144928 | E83: 3571 | F83: -0.0192254875 | G83: 1.999077524
A84: 83 | B84: 2015-02-14 | C84: 1073.050049 | D84: 0.03130402569 | E84: 3642 | F84: 0.01988238589 | G84: 1.926921936
A85: 84 | B85: 2015-02-21 | C85: 1054 | D85: -0.01281206969 | E85: 3654 | F85: 0.003294892916 | G85: 1.951773993
A86: 85 | B86: 2015-02-28 | C86: 1085.099976 | D86: -0.004366547395 | E86: 3674 | F86: 0.005473453749 | G86: 2.02172044
A87: 86 | B87: 2015-03-07 | C87: 1042.650024 | D87: 0.04373515259 | E87: 3705 | F87: 0.008437670114 | G87: 2.000348517
A88: 87 | B88: 2015-03-14 | C88: 1055.900024 | D88: -0.06250364751 | E88: 3598 | F88: -0.02887989204 | G88: 2.076130756 | H88: =AVERAGE(G37:G88) -> 2.28433494
A89: 88 | B89: 2015-03-21 | C89: 1014.650024 | D89: 0.03616782869 | E89: 3569 | F89: -0.008060033352 | G89: 1.956823402 | H89: 2.247428381
A90: 89 | B90: 2015-03-28 | C90: 1033.25 | D90: -0.01988585161 | E90: 3476 | F90: -0.02605771925 | G90: 1.884996089 | H90: 2.209515152
A91: 90 | B91: 2015-04-04 | C91: 1042.650024 | D91: 0.03837195047 | E91: 3579 | F91: 0.02963176064 | G91: 1.78214494 | H91: 2.173937322
A92: 91 | B92: 2015-04-11 | C92: 1018.25 | D92: -0.006021251476 | E92: 3669 | F92: 0.02514668902 | G92: 1.662669614 | H92: 2.128973024
A93: 92 | B93: 2015-04-18 | C93: 1006.450012 | D93: -0.03759353842 | E93: 3595 | F93: -0.02016898337 | G93: 1.639904406 | H93: 2.090848859
A94: 93 | B94: 2015-04-25 | C94: 988.799988 | D94: 0.01715519901 | E94: 3463 | F94: -0.03671766342 | G94: 1.445920613 | H94: 2.053527552
A95: 94 | B95: 2015-05-02 | C95: 982 | D95: 0.01898926166 | E95: 3425 | F95: -0.01097314467 | G95: 1.410922736 | H95: 2.015073244
A96: 95 | B96: 2015-05-09 | C96: 990.099976 | D96: -0.016134794 | E96: 3415 | F96: -0.002919708029 | G96: 1.451198162 | H96: 1.977016648
A97: 96 | B97: 2015-05-16 | C97: 1024.300049 | D97: 0.02892586989 | E97: 3466 | F97: 0.0149341142 | G97: 1.506229612 | H97: 1.944577619
A98: 97 | B98: 2015-05-23 | C98: 1050.550049 | D98: 0.01958477916 | E98: 3536 | F98: 0.02019619158 | G98: 1.527846474 | H98: 1.916841438
A99: 98 | B99: 2015-05-30 | C99: 1011.75 | D99: 0.01822796493 | E99: 3533 | F99: -0.0008484162896 | G99: 1.400029095 | H99: 1.889493461
A100: 99 | B100: 2015-06-06 | C100: 1009.150024 | D100: -0.06832087016 | E100: 3399 | F100: -0.03792810643 | G100: 1.478713634 | H100: 1.872675493
A101: 100 | B101: 2015-06-13 | C101: 1030.5 | D101: -0.0200048644 | E101: 3339 | F101: -0.01765225066 | G101: =COVAR(D72:D101,F72:F101)/VARP(F72:F101) -> 1.476269769 | H101: 1.853286989
A102: 101 | B102: 2015-06-20 | C102: 1062.849976 | D102: 0.02996835639 | E102: 3445 | F102: 0.03174603175 | G102: 1.424710213 | H102: 1.833385225
A103: 102 | B103: 2015-06-27 | C103: 1074.25 | D103: 0.03409638554 | E103: 3504 | F103: 0.01712626996 | G103: 1.438371734 | H103: 1.813714404
A104: 103 | B104: 2015-07-04 | C104: 1090.75 | D104: 0.01578702086 | E104: 3551 | F104: 0.01341324201 | G104: 1.426541672 | H104: 1.795440845
A105: 104 | B105: 2015-07-11 | C105: 1110.550049 | D105: -0.07185869129 | E105: 3510 | F105: -0.01154604337 | G105: 1.417373462 | H105: 1.779731652
A106: 105 | B106: 2015-07-18 | C106: 1107.849976 | D106: 0.01890756303 | E106: 3615 | F106: 0.02991452991 | G106: 1.373013132 | H106: 1.762031341
A107: 106 | B107: 2015-07-25 | C107: 1111.650024 | D107: -0.01922377198 | E107: 3577 | F107: -0.01051175657 | G107: 1.382566709 | H107: 1.744565767
A108: 107 | B108: 2015-08-01 | C108: 1092.650024 | D108: 0.02479441044 | E108: 3589 | F108: 0.003354766564 | G108: 1.324074527 | H108: 1.726631042
A109: 108 | B109: 2015-08-08 | C109: 1101.800049 | D109: -0.008084952335 | E109: 3625 | F109: 0.01003064921 | G109: 1.287988258 | H109: 1.708840051
A110: 109 | B110: 2015-08-15 | C110: 1061.300049 | D110: -0.03077858881 | E110: 3594 | F110: -0.008551724138 | G110: 1.27272272 | H110: 1.691119278
A111: 110 | B111: 2015-08-22 | C111: 1027.949951 | D111: -0.1320446843 | E111: 3512 | F111: -0.02281580412 | G111: 1.323050451 | H111: 1.67394148
A112: 111 | B112: 2015-08-29 | C112: 996.049988 | D112: -0.02219812003 | E112: 3380 | F112: -0.03758542141 | G112: 1.233431244 | H112: 1.657419765
A113: 112 | B113: 2015-09-05 | C113: 1010.5 | D113: -0.04407306071 | E113: 3241 | F113: -0.04112426036 | G113: 1.165124445 | H113: 1.639162875
A114: 113 | B114: 2015-09-12 | C114: 1049.75 | D114: 0.1007194245 | E114: 3286 | F114: 0.01388460352 | G114: 1.254864598 | H114: 1.623132655
A115: 114 | B115: 2015-09-19 | C115: 1051.400024 | D115: 0.082577834 | E115: 3356 | F115: 0.02130249544 | G115: 1.355380396 | H115: 1.607499785
A116: 115 | B116: 2015-09-26 | C116: 1067.650024 | D116: -0.06400934822 | E116: 3318 | F116: -0.01132300358 | G116: 1.392965874 | H116: 1.593230237
A117: 116 | B117: 2015-10-03 | C117: 1086.150024 | D117: 0.01026494659 | E117: 3357 | F117: 0.01175406872 | G117: 1.360954661 | H117: 1.58373675
A118: 117 | B118: 2015-10-10 | C118: 1100.050049 | D118: -0.004256487711 | E118: 3446 | F118: 0.02651176646 | G118: 1.240281767 | H118: 1.573657352
A119: 118 | B119: 2015-10-17 | C119: 1108.5 | D119: 0.06605074462 | E119: 3468 | F119: 0.006384213581 | G119: 1.292880831 | H119: 1.565927244
A120: 119 | B120: 2015-10-24 | C120: 1099.599976 | D120: -0.003621782434 | E120: 3488 | F120: 0.005767012687 | G120: 1.315745427 | H120: 1.561369552
A121: 120 | B121: 2015-10-31 | C121: 1080.900024 | D121: -0.01453978969 | E121: 3404 | F121: -0.02408256881 | G121: 1.28351272 | H121: 1.554735274
A122: 121 | B122: 2015-11-07 | C122: 1052.050049 | D122: -0.0008562771703 | E122: 3355 | F122: -0.01439482961 | G122: 1.348095098 | H122: 1.549417853
A123: 122 | B123: 2015-11-14 | C123: 1070.849976 | D123: -0.02768804799 | E123: 3287 | F123: -0.02026825633 | G123: 1.334611756 | H123: 1.544498979
A124: 123 | B124: 2015-11-21 | C124: 1079.400024 | D124: -0.007797138789 | E124: 3331 | F124: 0.01338606632 | G124: 1.493609574 | H124: 1.541808138
A125: 124 | B125: 2015-11-28 | C125: 1058.900024 | D125: 0.04127374607 | E125: 3365 | F125: 0.010207145 | G125: 1.55007432 | H125: 1.541115964
A126: 125 | B126: 2015-12-05 | C126: 1046.349976 | D126: -0.02953143457 | E126: 3312 | F126: -0.01575037147 | G126: 1.552712121 | H126: 1.541894343
A127: 126 | B127: 2015-12-12 | C127: 1073 | D127: -0.07932107114 | E127: 3230 | F127: -0.02475845411 | G127: 1.614729228 | H127: 1.545294753
A128: 127 | B128: 2015-12-19 | C128: 1074 | D128: 0.05626147631 | E128: 3304 | F128: 0.02291021672 | G128: 1.676428923 | H128: 1.549078862
A129: 128 | B129: 2015-12-26 | C129: 1088.75 | D129: 0.008761560392 | E129: 3343 | F129: 0.01180387409 | G129: 1.665185726 | H129: 1.551417012
A130: 129 | B130: 2016-01-02 | C130: 1062.349976 | D130: 0.009581581306 | E130: 3391 | F130: 0.01435836075 | G130: 1.642387287 | H130: 1.546962654
A131: =A130+1 -> 130 | B131: 2016-01-09 | C131: 1042.150024 | D131: -0.05264235969 | E131: 3254 | F131: -0.04040106163 | G131: 1.607028936 | H131: 1.543290584
A132: 131 | B132: 2016-01-16 | C132: 1030.300049 | D132: -0.04468468468 | E132: 3151 | F132: -0.03165334972 | G132: 1.636336773 | H132: 1.540033361
A133: 132 | B133: 2016-01-23 | C133: 1049.849976 | D133: 0.03138438325 | E133: 3133 | F133: -0.005712472231 | G133: 1.615646055 | H133: 1.535318952
A134: 133 | B134: 2016-01-30 | C134: 1055.25 | D134: 0.09267793139 | E134: 3191 | F134: 0.01851260772 | G134: 1.73334877 | H134: 1.531449829
A135: 134 | B135: 2016-02-06 | C135: 971.400024 | D135: 0.04076850984 | E135: 3162 | F135: -0.009088060169 | G135: 1.672225212 | H135: 1.525164208
A136: 135 | B136: 2016-02-13 | C136: 989.299988 | D136: -0.08200939088 | E136: 2946 | F136: -0.06831119545 | G136: 1.651028978 | H136: 1.519858574
A137: 136 | B137: 2016-02-20 | C137: 961 | D137: 0.0005605381166 | E137: 3032 | F137: 0.02919212492 | G137: 1.533364115 | H137: =AVERAGE(G86:G137) -> 1.51181223
A138: 137 | B138: 2016-02-27 | C138: 1020.549988 | D138: -0.03928571429 | E138: 2958 | F138: -0.02440633245 | G138: 1.532954011 | H138: 1.502412876
A139: 138 | B139: 2016-03-05 | C139: 1028.699951 | D139: 0.1070048837 | E139: 3153 | F139: 0.06592292089 | G139: 1.556104402 | H139: 1.49386972
A140: 139 | B140: 2016-03-12 | C140: 1028.400024 | D140: 0.0528741687 | E140: 3160 | F140: 0.002220107834 | G140: 1.563596935 | H140: 1.4840133
A141: 140 | B141: 2016-03-19 | C141: 1049.349976 | D141: 0.01838649156 | E141: 3193 | F141: 0.01044303797 | G141: 1.462721708 | H141: 1.474511344
A142: 141 | B142: 2016-03-26 | C142: 1064.449951 | D142: 0.04151314173 | E142: 3245 | F142: 0.0162856248 | G142: 1.507589499 | H142: 1.467253525 | I142: =FORECAST(A142+52,H91:H142,A91:A142) -> 0.7765451141
A143: 142 | B143: 2016-04-02 | C143: 1059.349976 | D143: 0.009080188679 | E143: 3254 | F143: 0.002773497689 | G143: 1.523503501 | H143: 1.462279652 | I143: 0.8121626284
A144: 143 | B144: 2016-04-09 | C144: 1081.75 | D144: -0.006894939815 | E144: 3199 | F144: -0.01690227412 | G144: 1.462647676 | H144: 1.458433076 | I144: 0.8447465916
A145: 144 | B145: 2016-04-16 | C145: 1092.150024 | D145: 0.02318192516 | E145: 3315 | F145: 0.03626133167 | G145: 1.346326367 | H145: 1.452787344 | I145: 0.8747545906
A146: 145 | B146: 2016-04-23 | C146: 1132.349976 | D146: 0.007245543416 | E146: 3341 | F146: 0.007843137255 | G146: 1.310673089 | H146: 1.45018643 | I146: 0.9026693468
A147: 146 | B147: 2016-04-30 | C147: 1119.650024 | D147: 0.07747202558 | E147: 3322 | F147: -0.005686920084 | G147: 1.295213299 | H147: 1.447961249 | I147: 0.9281548788
A148: 147 | B148: 2016-05-07 | C148: 1140.900024 | D148: -0.03560642187 | E148: 3279 | F148: -0.01294400963 | G148: 1.383329312 | H148: 1.446656079 | I148: 0.9512064794
A149: 148 | B149: 2016-05-14 | C149: 1140.900024 | D149: 0.04290973023 | E149: 3316 | F149: 0.01128392803 | G149: 1.375813827 | H149: 1.444148083 | I149: 0.972231855
A150: 149 | B150: 2016-05-21 | C150: 1186.800049 | D150: 0.02992308503 | E150: 3283 | F150: -0.009951749095 | G150: 1.369312948 | H150: 1.441099361 | I150: 0.9916654883
A151: 150 | B151: 2016-05-28 | C151: 1171.75 | D151: 0.05033248082 | E151: 3436 | F151: 0.04660371611 | G151: 1.323022669 | H151: 1.439618468 | I151: 1.009699314
A152: 151 | B152: 2016-06-04 | C152: 1161.349976 | D152: 0.02196357261 | E152: 3461 | F152: 0.007275902212 | G152: 1.329650521 | H152: 1.43675187 | I152: 1.027545556
A153: 152 | B153: 2016-06-11 | C153: 1170 | D153: 0.01238980224 | E153: 3448 | F153: -0.003756139844 | G153: 1.315677819 | H153: 1.433663563 | I153: 1.044668951
A154: 153 | B154: 2016-06-18 | C154: 1161.900024 | D154: 0.007578253707 | E154: 3447 | F154: -0.0002900232019 | G154: 1.337394312 | H154: 1.431984411 | I154: 1.06114638
A155: 154 | B155: 2016-06-25 | C155: 1174.5 | D155: 0.009016163692 | E155: 3418 | F155: -0.008413112852 | G155: 1.326095621 | H155: 1.429825255 | I155: 1.076803103
A156: 155 | B156: 2016-07-02 | C156: 1174.849976 | D156: 0.0462521413 | E156: 3539 | F156: 0.03540081919 | G156: 1.289095779 | H156: 1.427182065 | I156: 1.091650403
A157: 156 | B157: 2016-07-09 | C157: 1223.699951 | D157: -0.009558367997 | E157: 3542 | F157: 0.0008476970896 | G157: 1.208871932 | H157: 1.42317242 | I157: 1.10572835
A158: 157 | B158: 2016-07-16 | C158: 1230.800049 | D158: 0.05348047538 | E158: 3625 | F158: 0.02343308865 | G158: 1.205874394 | H158: 1.419958214 | I158: 1.118798207
A159: 158 | B159: 2016-07-23 | C159: 1246.199951 | D159: -0.01747317528 | E159: 3641 | F159: 0.004413793103 | G159: 1.211735018 | H159: 1.416672989 | I159: 1.130787422
A160: 159 | B160: 2016-07-30 | C160: 1249.25 | D160: 0.05080502439 | E160: 3692 | F160: 0.0140071409 | G160: 1.234594718 | H160: 1.414952223 | I160: 1.141822977
A161: 160 | B161: 2016-08-06 | C161: 1228.699951 | D161: 0.03368386461 | E161: 3706 | F161: 0.003791982665 | G161: 1.192052644 | H161: 1.413107308 | I161: 1.151796695
A162: 161 | B162: 2016-08-13 | C162: 1247.099976 | D162: 0.02606898744 | E162: 3700 | F162: -0.001618996222 | G162: 1.137105816 | H162: 1.41049929 | I162: 1.160470601
A163: 162 | B163: 2016-08-20 | C163: 1257.099976 | D163: 0.0353601859 | E163: 3721 | F163: 0.005675675676 | G163: 1.151736137 | H163: 1.407204784 | I163: =FORECAST(A163+52,H112:H163,A112:A163) -> 1.167700436
A164: 163 | B164: 2016-08-27 | C164: 1285.099976 | D164: -0.007780645644 | E164: 3690 | F164: -0.008331093792 | G164: 1.119385307 | H164: 1.405011593 | I164: 1.173703755
A165: 164 | B165: 2016-09-03 | C165: 1290.400024 | D165: 0.04618284637 | E165: 3774 | F165: 0.02276422764 | G165: =COVAR(D136:D165,F136:F165)/VARP(F136:F165) -> 1.159283276 | H165: 1.404899263 | I165: 1.178505983
A166: 165 | B166: 2016-09-10 | C166: 1297.849976 | D166: -0.07945945946 | E166: 3811 | F166: 0.009803921569 | G166: 1.039183031 | H166: 1.400751541 | I166: 1.1815762
A167: 166 | B167: 2016-09-17 | C167: 1312.699951 | D167: -0.08526130358 | E167: 3768 | F167: -0.01128312779 | G167: 1.265311921 | H167: 1.399019455 | I167: 1.183351843
A168: 167 | B168: 2016-09-24 | C168: 1272.849976 | D168: 0.05482090127 | E168: 3800 | F168: 0.008492569002 | G168: 1.210621567 | H168: 1.395512833 | I168: 1.183620231
A169: 168 | B169: 2016-10-01 | C169: 1280.599976 | D169: 0.01772963324 | E169: 3720 | F169: -0.02105263158 | G169: 0.9463850692 | H169: 1.387540341 | I169: 1.182216359
A170: 169 | B170: 2016-10-08 | C170: 1261.800049 | D170: 0.01662348017 | E170: 3779 | F170: 0.01586021505 | G170: 0.9527368826 | H170: 1.382010632 | I170: 1.179497828
A171: 170 | B171: 2016-10-15 | C171: 1270.699951 | D171: -0.01188142107 | E171: 3734 | F171: -0.01190791215 | G171: 0.9792513392 | H171: 1.375979295 | I171: 1.175706994
A172: 171 | B172: 2016-10-22 | C172: 1259.050049 | D172: 0.0453192587 | E172: 3782 | F172: 0.01285484735 | G172: 0.9794399866 | H172: 1.369511883 | I172: 1.171245898
A173: 172 | B173: 2016-10-29 | C173: 1243.699951 | D173: -0.03428115865 | E173: 3754 | F173: -0.007403490217 | G173: 1.038147985 | H173: 1.364793331 | I173: 1.166131708
A174: 173 | B174: 2016-11-05 | C174: 1275.800049 | D174: -0.05936001258 | E174: 3649 | F174: -0.02797016516 | G174: 1.196562314 | H174: 1.361879239 | I174: 1.160896474
A175: 174 | B175: 2016-11-12 | C175: 1211.400024 | D175: 0.01596456035 | E175: 3578 | F175: -0.01945738559 | G175: 1.221154231 | H175: 1.359697363 | I175: 1.155724135
A176: 175 | B176: 2016-11-19 | C176: 1189.300049 | D176: -0.02932949404 | E176: 3473 | F176: -0.02934600335 | G176: 1.237234007 | H176: 1.354767064 | I176: 1.150427819
A177: 176 | B177: 2016-11-26 | C177: 1189.099976 | D177: -0.0104674323 | E177: 3500 | F177: 0.007774258566 | G177: 1.283303227 | H177: 1.34963685 | I177: 1.14529678
A178: 177 | B178: 2016-12-03 | C178: 1198.300049 | D178: -0.01498929336 | E178: 3492 | F178: -0.002285714286 | G178: 1.248884666 | H178: 1.343794015 | I178: 1.140456007
A179: 178 | B179: 2016-12-10 | C179: 1182.300049 | D179: 0.05969565217 | E179: 3570 | F179: 0.02233676976 | G179: 1.284541721 | H179: 1.337444255 | I179: 1.136263355
A180: 179 | B180: 2016-12-17 | C180: 1186.25 | D180: -0.03064866861 | E180: 3507 | F180: -0.01764705882 | G180: 1.365141477 | H180: 1.331457958 | I180: 1.132911548
A181: 180 | B181: 2016-12-24 | C181: 1206.199951 | D181: -0.04795564209 | E181: 3429 | F181: -0.02224123182 | G181: 1.534677318 | H181: 1.328948181 | I181: 1.130892931
A182: 181 | B182: 2016-12-31 | C182: 1193.650024 | D182: 0.02814208865 | E182: 3511 | F182: 0.02391367746 | G182: 1.493243601 | H182: 1.326080033 | I182: 1.129111854
A183: 182 | B183: 2017-01-07 | C183: 1232.5 | D183: 0.07861281674 | E183: 3556 | F183: 0.01281686129 | G183: 1.58263728 | H183: 1.325610963 | I183: 1.12813086
A184: 183 | B184: 2017-01-14 | C184: 1236.349976 | D184: 0.05664688903 | E184: 3626 | F184: 0.01968503937 | G184: 1.627912036 | H184: 1.325448949 | I184: 1.128051229
A185: 184 | B185: 2017-01-21 | C185: 1291.900024 | D185: 0.0309595174 | E185: 3612 | F185: -0.003861003861 | G185: 1.627464261 | H185: 1.325676222 | I185: 1.128698169
A186: 185 | B186: 2017-01-28 | C186: 1311.050049 | D186: 0.02995620653 | E186: 3739 | F186: 0.03516057586 | G186: 1.565144694 | H186: 1.322441528 | I186: 1.129520252
A187: 186 | B187: 2017-02-04 | C187: 1303.599976 | D187: -0.001500696752 | E187: 3790 | F187: 0.0136400107 | G187: 1.525633331 | H187: 1.319622453 | I187: 1.130214161
A188: 187 | B188: 2017-02-11 | C188: 1377.050049 | D188: 0.009518697441 | E188: 3819 | F188: 0.00765171504 | G188: 1.486041181 | H188: 1.316449611 | I188: 1.130843451
A189: 188 | B189: 2017-02-18 | C189: 1394.300049 | D189: 0.02130374677 | E189: 3828 | F189: 0.002356637863 | G189: 1.496016099 | H189: 1.31573138 | I189: 1.131427515
A190: 189 | B190: 2017-02-25 | C190: 1377 | D190: 0.002776620852 | E190: 3875 | F190: 0.01227795193 | G190: 1.431462431 | H190: 1.313779619 | I190: 1.131474803
A191: 190 | B191: 2017-03-04 | C191: 1400.099976 | D191: -0.006403156583 | E191: 3853 | F191: -0.005677419355 | G191: 1.426457379 | H191: 1.311286407 | I191: 1.13096793
A192: 191 | B192: 2017-03-11 | C192: 1425.849976 | D192: 0.03110739541 | E192: 3860 | F192: 0.001816766156 | G192: 1.437149673 | H192: 1.308854729 | I192: 1.12967342
A193: 192 | B193: 2017-03-18 | C193: 1424.349976 | D193: 0.01898648649 | E193: 3970 | F193: 0.02849740933 | G193: 1.353136233 | H193: 1.306747316 | I193: 1.127658428
A194: 193 | B194: 2017-03-25 | C194: 1442.550049 | D194: 0.01379218885 | E194: 3954 | F194: -0.0040302267 | G194: 1.342308524 | H194: 1.303568835 | I194: 1.125023045
A195: =A194+1 -> 194 | B195: 2017-04-01 | C195: 1438.849976 | D195: 0.01321211328 | E195: 3992 | F195: 0.009610520991 | G195: 1.307345307 | H195: 1.299411947 | I195: 1.121912928
A196: 195 | B196: 2017-04-08 | C196: 1440.300049 | D196: 0.002582144471 | E196: 4011 | F196: 0.004759519038 | G196: 1.395647901 | H196: 1.29812349 | I196: 1.119037785
A197: 196 | B197: 2017-04-15 | C197: 1496.599976 | D197: 0.0410147447 | E197: 4004 | F197: -0.001745200698 | G197: 1.254537178 | H197: 1.296358313 | I197: 1.116010225
A198: 197 | B198: 2017-04-22 | C198: 1546.5 | D198: -0.04539831766 | E198: 4002 | F198: -0.0004995004995 | G198: 1.241092861 | H198: 1.295020232 | I198: 1.113360168
A199: 198 | B199: 2017-04-29 | C199: 1532.199951 | D199: 0.05656343139 | E199: 4083 | F199: 0.02023988006 | G199: 1.414488662 | H199: 1.297313989 | I199: 1.11182053
A200: 199 | B200: 2017-05-06 | C200: 1551.650024 | D200: -0.01349113877 | E200: 4071 | F200: -0.00293901543 | G200: 1.442765618 | H200: 1.298456995 | I200: 1.111288746
... 12 more rows

Sheet Valuation
B1: Company | C1: HDFC BANK Ltd | G1: Inputs to the model. | K1: Key ratios | U1: Checklist
A2: Ph | B2: Financial Year Ended | C2: Book Value | D2: Ret on Equity | E2: Div + Buyback | F2: Earnings | G2: Shares Out | H2: Price / Book | I2: EPS Growth | J2: Sust Growth Rate | K2: Payout Ratio | L2: Disc Rate | M2: PV Factor | N2: PV of Div | O2: Eco Value Added | P2: PV of EVA | Q2: P/E | R2: Avg Price | S2: Ann Rtn | U2: High Growth Phase
B3: 2012-03-31 | J3: =(1-E3/F3)*D3 ->  | K3: =E3/F3 ->  | Q3: =H3/D3 ->  | R3: =C3*H3 -> 0 | V3: Years | Y3: >= | Z3: 8 | AB3: 0
B4: 2013-03-31 | I4: =F4/F3-1 ->  | O4: =(D4-discount_rate)*AVERAGE(C3:C4) ->  | R4: 0 | S4: =R4/R3-1 ->  | V4: Growth Rate | Y4: >= | Z4: 0.25 | AA4: <= | AB4: 0
B5: 2014-03-31 | O5: =(D5-discount_rate)*AVERAGE(C4:C5) ->  | R5: 0 | S5: =R5/R4-1 ->  | V5: Discount Rate | Y5: <= | Z5: =CAPM_Disc_Rate-3% -> 0.1145986435 | AA5: >= | AB5: =CAPM_Disc_Rate+5% -> 0.1945986435
B6: 2015-03-31 | O6: =(D6-discount_rate)*AVERAGE(C5:C6) ->  | R6: 0 | S6: =R6/R5-1 ->  | V6: Payout Ratio | Y6: <= | Z6: 0.1 | AA6: >= | AB6: 0.5
B7: 2016-03-31 | O7: =(D7-discount_rate)*AVERAGE(C6:C7) ->  | R7: 0 | S7: =R7/R6-1 ->  | U7: Slowdown Phase
B8: 2017-03-31 | C8: 362 | D8: 0.18 | E8: 13.19844358 | F8: 56.5 | G8: 257.51 | H8: 4.91 | J8: 0.1379518612 | K8: 0.2336007713 | O8: =(D8-discount_rate)*AVERAGE(C7:C8) -> 12.81529104 | Q8: 27.27777778 | R8: 1777.42 | S8: =R8/R7-1 ->  | V8: Years | Y8: >= | Z8: =20-growth_phase_years -> 16 | AA8: <= | AB8: 0
A9: =IF(YEAR(B9)-YEAR(B$8)<=C$36,1,IF(YEAR(B9)-YEAR(B$8)<=C$36+D$36,2,3)) -> 1 | B9: =DATE(YEAR(B8)+1,MONTH(B8),DAY(B8)) -> 2018-03-31 | C9: =(C8*G8+(G9-G8)*I$44*C8)/G9+F8-E8 -> 433.1747839 | D9: =IF(A9=1,D8+(C$37-D$8)/C$36,IF(A9=2,D8+(E$37-C$37)/D$36,E$37)) -> 0.185 | E9: =E8*(1+J8)*IF(A9=1,C$38,IF(A9=2,D$38,1)) -> 15.01919344 | F9: =((C9+C8)/2)*D9 -> 73.55366751 | G9: =G8*IF(A9=1,1+C$39,1) -> 262.6601999 | H9: =R9/C9 -> 3.107986977 | I9: 0.3018348231 | J9: 0.1472241707 | K9: 0.2041936717 | L9: =IF(A9=1,discount_rate,IF(A9=3,term_disc_rate,disc_rate-((discount_rate-term_disc_rate)/slowdown_phase_years))) -> 0.1445986435 | M9: =(1+L9)^((B9-TODAY())/365) -> 1.094078759 | N9: =(1-C$46)*E9/M9 -> 12.35493695 | O9: =(D9-L9)*AVERAGE(C8:C9) -> 16.06306995 | P9: =O9/M9 -> 14.68182232 | Q9: =fair_pe -> 18.30366361 | R9: =F9*Q9 -> 1346.301587 | S9: =(R9+E9)/R8-1 -> -0.2341029242 | U9: Perpetual Phase
A10: 1 | B10: 2019-03-31 | C10: =(C9*G9+(G10-G9)*I$44*C9)/G10+F9-E9 -> 525.0627918 | D10: 0.19 | E10: 17.23038173 | F10: =((C10+C9)/2)*D10 -> 91.03256969 | G10: 267.9134038 | H10: 3.102225466 | I10: 0.2376346792 | J10: 0.154037349 | K10: 0.1892771103 | L10: =IF(A10=1,discount_rate,IF(A10=3,term_disc_rate,L9-((discount_rate-term_disc_rate)/slowdown_phase_years))) -> 0.1445986435 | M10: 1.252281064 | N10: =(1-C$46)*E10/M10 -> 12.38327721 | O10: 21.75264288 | P10: =O10/M10 -> 17.37041588 | Q10: =Q9+((I$36-J$43)/20) -> 17.89319108 | R10: 1628.863164 | S10: 0.222678159 | V10: ROE | Y10: >= | Z10: =term_disc_rate+5% -> 0.166 | AA10: <= | AB10: =term_disc_rate-2% -> 0.096
A11: 1 | B11: 2020-03-31 | C11: 639.2936942 | D11: 0.195 | E11: 19.88450406 | F11: 113.5247574 | G11: 273.2716717 | H11: 3.104553354 | I11: 0.2470784662 | J11: 0.1608446459 | K11: 0.1751556622 | L11: 0.1445986435 | M11: 1.433889664 | N11: 12.48077457 | O11: 29.34257315 | P11: 20.46361996 | Q11: 17.48271856 | R11: 1984.721383 | S11: 0.230677893 | V11: Growth Rate | Y11: >= | Z11: =term_disc_rate-3% -> 0.086 | AA11: <= | AB11: =term_disc_rate-10% -> 0.016
A12: 1 | B12: 2021-03-31 | C12: 782.1581976 | D12: 0.2 | E12: 23.08282007 | F12: 142.1451892 | G12: 278.737105 | H12: 3.102617411 | I12: 0.2521074033 | J12: 0.167522193 | K12: 0.1623890348 | L12: 0.1445986435 | M12: 1.641228164 | N12: 12.65792199 | O12: 39.37518148 | P12: 23.99129038 | Q12: 17.07224603 | R12: 2426.737642 | S12: 0.2343397333 | V12: Discount Rate | Y12: <= | Z12: =discount_rate-5% -> 0.09459864353 | AA12: >= | AB12: =discount_rate+2% -> 0.1645986435
A13: 2 | B13: 2022-03-31 | C13: 901.2205667 | D13: 0.195 | E13: 28.83618404 | F13: 164.1294295 | G13: 278.737105 | H13: 3.03442629 | I13: 0.15466046 | J13: 0.1607401119 | K13: 0.1756917338 | L13: 0.1422154232 | M13: 1.860356758 | N13: 13.95031653 | O13: 44.4282178 | P13: 23.88155799 | Q13: 16.66177351 | R13: 2734.687381 | S13: 0.1387813487 | V13: Terminal Value / Present Value | Y13: >= | Z13: 0.75 | AA13: <= | AB13: 0.3
A14: 2 | B14: 2023-03-31 | C14: 1036.513812 | D14: 0.19 | E14: 35.81430758 | F14: 184.084766 | G14: 278.737105 | H14: 2.88622969 | I14: 0.1215829272 | J14: 0.1530348638 | K14: 0.1945533482 | L14: 0.1398322029 | M14: 2.099918215 | N14: 15.34958675 | O14: 48.60593253 | P14: 23.14658361 | Q14: 16.25130099 | R14: 2991.616939 | S14: 0.1070483843 | V14: Payout Ratio | Y14: <= | Z14: 0.3 | AA14: >= | AB14: 0.7
A15: 2 | B15: 2024-03-31 | C15: 1184.784271 | D15: 0.185 | E15: 44.18580543 | F15: 205.4700727 | G15: 278.737105 | H15: 2.747180441 | I15: 0.1161709745 | J15: 0.1452162305 | K15: 0.2150474026 | L15: 0.1374489827 | M15: 2.361211597 | N15: 16.84187259 | O15: 52.81249184 | P15: 22.3666917 | Q15: 15.84082846 | R15: 3254.816175 | S15: 0.1027487969 | V15: Exit PE | Y15: >= | Z15: =exit_pe + 3 -> 13.09421313 | AA15: <= | AB15: =exit_pe-3 -> 7.094213125
A16: 2 | B16: 2025-03-31 | C16: 1346.068538 | D16: 0.18 | E16: 54.14446265 | F16: 227.7767528 | G16: 278.737105 | H16: 2.611067914 | I16: 0.1085641321 | J16: 0.137212476 | K16: 0.2377084667 | L16: 0.1350657624 | M16: 2.642890003 | N16: 18.43815532 | O16: 56.86097077 | P16: 21.51469441 | Q16: 15.43035594 | R16: 3514.676369 | S16: 0.09647385295 | U16: Overall Valuation
A17: 2 | B17: 2026-03-31 | C17: 1519.700828 | D17: 0.175 | E17: 65.88392152 | F17: 250.7548195 | G17: 278.737105 | H17: 2.478322105 | I17: 0.1008797714 | J17: 0.1290200811 | K17: 0.2627423937 | L17: 0.1326825421 | M17: 2.945675224 | N17: 20.12969009 | O17: 60.6360373 | P17: 20.58476672 | Q17: 15.01988341 | R17: 3766.308154 | S17: 0.09033995541 | V17: DDM / RIM Ratio | Y17: >= | Z17: 1.5 | AA17: < | AB17: 1
A18: 2 | B18: 2027-03-31 | C18: 1704.571726 | D18: 0.17 | E18: 79.59116934 | F18: 274.0631671 | G18: 278.737105 | H18: 2.348919296 | I18: 0.09295274013 | J18: 0.1206299992 | K18: 0.2904117696 | L18: 0.1302993218 | M18: 3.269237011 | N18: 21.9109389 | O18: 64.0029036 | P18: 19.57732137 | Q18: 14.60941089 | R18: 4003.901418 | S18: 0.08421627215
A19: 2 | B19: 2028-03-31 | C19: 1899.043724 | D19: 0.165 | E19: 95.43570968 | F19: 297.2982746 | G19: 278.737105 | H19: 2.22286608 | I19: 0.08478011752 | J19: 0.1120333552 | K19: 0.3210099682 | L19: 0.1279161015 | M19: 3.614107721 | N19: 23.76579375 | O19: 66.81805483 | P19: 18.48811933 | Q19: 14.19893837 | R19: 4221.319877 | S19: 0.07813733072
A20: 2 | B20: 2029-03-31 | C20: 2100.906289 | D20: 0.16 | E20: 113.5566309 | F20: 319.996001 | G20: 278.737105 | H20: 2.100166939 | I20: 0.07634664688 | J20: 0.103220975 | K20: 0.3548689064 | L20: 0.1255328812 | M20: 3.976986047 | N20: 25.69809564 | O20: 68.93337618 | P20: 17.33306965 | Q20: 13.78846584 | R20: 4412.253929 | S20: 0.07213162982
A21: 2 | B21: 2030-03-31 | C21: 2307.345659 | D21: 0.155 | E21: 134.0475211 | F21: 341.6395259 | G21: 278.737105 | H21: 1.980826443 | I21: 0.06763686066 | J21: 0.09418336671 | K21: 0.3923653761 | L21: 0.1231496609 | M21: 4.357577751 | N21: 27.68574099 | O21: 70.20215971 | P21: 16.11036308 | Q21: 13.37799332 | R21: 4570.451295 | S21: 0.06623482951
A22: 2 | B22: 2031-03-31 | C22: 2514.937663 | D22: 0.15 | E22: 156.9396477 | F22: 361.6712492 | G22: 278.737105 | H22: 1.864849182 | I22: 0.05863409158 | J22: 0.08491064827 | K22: 0.4339290115 | L22: 0.1207664406 | M22: 4.754100636 | N22: 29.7102846 | O22: 70.486253 | P22: 14.82641164 | Q22: 12.96752079 | R22: 4689.979444 | S22: 0.06049026214
A23: 2 | B23: 2032-03-31 | C23: 2719.669265 | D23: 0.145 | E23: 182.1840795 | F23: 379.5090023 | G23: 278.737105 | H23: 1.752239848 | I23: 0.04932035155 | J23: 0.07539245085 | K23: 0.4800520631 | L23: 0.1183832203 | M23: 5.165958129 | N23: 31.73964393 | O23: 69.66418973 | P23: 13.48524088 | Q23: 12.55704827 | R23: 4765.512861 | S23: 0.05495066651
A24: 2 | B24: 2033-03-31 | C24: 2916.994188 | D24: 0.14 | E24: 209.6337406 | F24: 394.5664417 | G24: 278.737105 | H24: 1.643003332 | I24: 0.03967610594 | J24: 0.0656177906 | K24: 0.5313014957 | L24: 0.116 | M24: 5.587504259 | N24: 33.76648282 | O24: 67.63996143 | P24: 12.10557671 | Q24: 12.14657575 | R24: 4792.631171 | S24: 0.04968028782
A25: 3 | B25: 2034-03-31 | C25: 3101.926889 | D25: 0.14 | E25: 223.3894435 | F25: 421.3244754 | G25: 278.737105 | H25: 1.594076105 | I25: 0.06781629364 | J25: 0.06577093446 | K25: 0.530207611 | L25: 0.116 | M25: 6.235654753 | N25: 32.24208317 | O25: 72.22705292 | P25: 11.58291403 | Q25: 11.73610322 | R25: 4944.707533 | S25: 0.07834231179
A26: 3 | B26: 2035-03-31 | C26: 3299.861921 | D26: 0.14 | E26: 238.081976 | F26: 448.1252167 | G26: 278.737105 | H26: 1.538034267 | I26: 0.06361069169 | J26: 0.06562017178 | K26: 0.5312844873 | L26: 0.116 | M26: 6.958990704 | N26: 30.79092752 | O26: 76.82146571 | P26: 11.03916774 | Q26: 11.3256307 | R26: 5075.30071 | S26: 0.07455954697
A27: 3 | B27: 2036-03-31 | C27: 3509.905161 | D27: 0.14 | E27: 253.7049561 | F27: 476.6836957 | G27: 278.737105 | H27: 1.482398441 | I27: 0.06372879279 | J27: 0.0654879196 | K27: 0.5322291457 | L27: 0.116 | M27: 7.768569185 | N27: 29.3920869 | O27: 81.71720498 | P27: 10.51895182 | Q27: 10.91515817 | R27: 5203.077938 | S27: 0.07516444945
A28: 3 | B28: 2037-03-31 | C28: 3732.883901 | D28: 0.14 | E28: 270.3195659 | F28: 506.9952344 | G28: 278.737105 | H28: 1.426732174 | I28: 0.06358836874 | J28: 0.06535484229 | K28: 0.5331796979 | L28: 0.116 | M28: 8.66972321 | N28: 28.06175047 | O28: 86.91346875 | P28: 10.02494159 | Q28: 10.50468565 | R28: 5325.825563 | S28: 0.0755451284
B29: Growth Rates
B30: Last 3 Years | C30: =RATE(3,0,-C5,C8) ->  | D30: =AVERAGE(D6:D8) -> 0.18 | E30: =RATE(3,0,-E5,E8) ->  | F30: =RATE(3,0,-F5,F8) ->  | G30: =RATE(3,0,-G5,G8) ->  | J30: =AVERAGE(J6:J8) ->  | K30: =AVERAGE(K6:K8) ->  | O30: =RATE(3,0,-O5,O8) ->  | Q30: =AVERAGE(Q6:Q8) -> 
B31: High Growth Phase | C31: =RATE(growth_phase_years,0,-C8,OFFSET(C8,growth_phase_years,0)) -> 0.2124016192 | D31: =AVERAGE(OFFSET(D9,0,0,growth_phase_years,1)) -> 0.1925 | E31: =RATE(growth_phase_years,0,-E8,OFFSET(E8,growth_phase_years,0)) -> 0.1499833077 | F31: =RATE(growth_phase_years,0,-F8,OFFSET(F8,growth_phase_years,0)) -> 0.2594209968 | J31: =AVERAGE(OFFSET(J9,0,0,growth_phase_years,1)) -> 0.1574070897 | K31: =AVERAGE(OFFSET(K9,0,0,growth_phase_years,1)) -> 0.1827538698 | O31: =RATE(growth_phase_years,0,-O8,OFFSET(O8,growth_phase_years,0)) -> 0.3239559134 | Q31: =AVERAGE(OFFSET(Q9,0,0,growth_phase_years,1)) -> 17.68795482
B32: Slowdown Phase | C32: =RATE(slowdown_phase_years,0,-OFFSET(C8,growth_phase_years,0),OFFSET(C8,growth_phase_years+slowdown_phase_years,0)) -> 0.1159294702 | D32: =AVERAGE(OFFSET(D9,growth_phase_years,0,slowdown_phase_years,1)) -> 0.1675 | E32: =RATE(slowdown_phase_years,0,-OFFSET(E8,growth_phase_years,0),OFFSET(E8,growth_phase_years+slowdown_phase_years,0)) -> 0.201842875 | F32: =RATE(slowdown_phase_years,0,-OFFSET(F8,growth_phase_years,0),OFFSET(F8,growth_phase_years+slowdown_phase_years,0)) -> 0.08880222148 | J32: =AVERAGE(OFFSET(J9,growth_phase_years,0,slowdown_phase_years,1)) -> 0.1151010291 | K32: =AVERAGE(OFFSET(K9,growth_phase_years,0,slowdown_phase_years,1)) -> 0.3241401613 | O32: =RATE(slowdown_phase_years,0,-OFFSET(O8,growth_phase_years,0),OFFSET(O8,growth_phase_years+slowdown_phase_years,0)) -> 0.04612054625 | Q32: =AVERAGE(OFFSET(Q9,growth_phase_years,0,slowdown_phase_years,1)) -> 14.40417463
B33: Perpetual | C33: =C28/C27-1 -> 0.06352842295 | D33: =terminal_roe -> 0.14 | E33: =J28 -> 0.06535484229 | F33: =terminal_growth_rate -> 0.06535484229 | J33: =terminal_growth_rate -> 0.06535484229 | K33: =K28 -> 0.5331796979 | O33: =terminal_roe-term_disc_rate -> 0.024 | Q33: =Q28 -> 10.50468565
C35: High Growth | D35: Slowdown | E35: Perpetual | G35: Intrinsic Value | I35: DDM | J35: RIM | K35: CAPM | O35: Curr / TTM | P35: ="In " & growth_phase_years & " Years" -> In 4 Years | Q35: =growth_phase_years & " Year CAGR" -> 4 Year CAGR | R35: In 20 Years | S35: 20 Yr CAGR
B36: Years | C36: 4 | D36: 12 | G36: Exit PE | I36: =I37/F28 -> 10.09421313 | M36: Sales (Rs Cr) | O36: 71458 | P36: =O36*P38/O38 -> 167455.1658 | Q36: =RATE((OFFSET(B8,growth_phase_years,0)-TODAY())/365,0,-O36,P36) -> 0.2612969113 | R36: =O36*R38/O38 -> 799187.037 | S36: =RATE(20,0,-O36,R36) -> 0.128313745
B37: ROE | C37: 0.2 | E37: 0.14 | G37: Terminal Value | I37: =(1-C46)*E28*(1+J28)/(E40-J28) -> 5117.717949 | J37: =O28*(1+O33)/(term_disc_rate-O33) -> 967.3846956 | M37: Profits (Rs Cr) | O37: 15204 | P37: =P40*P39 -> 39621.13853 | Q37: =RATE((OFFSET(B8,growth_phase_years,0)-TODAY())/365,0,-O37,P37) -> 0.298343573 | R37: =R40*R39 -> 141318.3839 | S37: 0.1179233828
B38: Div Growth Factor | C38: 1 | D38: 1.07 | G38: PV of Term Val | I38: =I37/M28 -> 590.2977321 | J38: =J37/M28 -> 111.5819585 | M38: Book Value (Rs Cr) | O38: 93034 | P38: =P41*P39 -> 218016.5117 | Q38: =RATE((OFFSET(B8,growth_phase_years,0)-TODAY())/365,0,-O38,P38) -> 0.2612969113 | R38: =R41*R39 -> 1040493.252 | S38: 0.128313745
B39: Dilution Rate | C39: 0.01999999955 | G39: Intrinsic Value | I39: =SUM(N9:N28,I38) -> 1039.648093 | J39: =SUM(C8,P9:P28,J38) -> 816.6754793 | K39: =PV(discount_rate,(OFFSET(B8,growth_phase_years,0)-TODAY())/365,-AVERAGE(OFFSET(E8,0,0,growth_phase_years,1)),-P44) -> 1522.742287 | M39: Shares (Cr) | O39: 257.8 | P39: =OFFSET(G8,growth_phase_years,0) -> 278.737105 | Q39: =RATE((OFFSET(B8,growth_phase_years,0)-TODAY())/365,0,-O39,P39) -> 0.02151344617 | R39: =G28 -> 278.737105 | S39: 0.003911880069
B40: Discount Rate | C40: =CAPM_Disc_Rate -> 0.1445986435 | E40: =E45 -> 0.116 | G40: Term Val / IV | I40: =I38/I39 -> 0.5677860963 | J40: =J38/J39 -> 0.1366294952 | M40: EPS | O40: 56.8 | P40: =OFFSET(F8,growth_phase_years,0) -> 142.1451892 | Q40: =RATE((OFFSET(B8,growth_phase_years,0)-TODAY())/365,0,-O40,P40) -> 0.2840917044 | R40: =F28 -> 506.9952344 | S40: 0.1156623494
M41: BVPS | O41: =O38/O39 -> 360.8766486 | P41: =OFFSET(C8,growth_phase_years,0) -> 782.1581976 | Q41: =RATE((OFFSET(B8,growth_phase_years,0)-TODAY())/365,0,-O41,P41) -> 0.2347335378 | R41: =C28 -> 3732.883901 | S41: 0.123917116
B42: Equity Risk Premium | C42: =erp -> 0.07381575767 | E42: 0.06 | I42: Current | J42: Fair | K42: Terminal | M42: SPS | O42: 277.2 | P42: =O42*P41/O41 -> 600.7987861 | Q42: =RATE((OFFSET(B8,growth_phase_years,0)-TODAY())/365,0,-O42,P42) -> 0.2347335378 | R42: =O42*R41/O41 -> 2867.338248 | S42: 0.123917116
B43: Risk Free Rate | C43: =rfr -> 0.06 | E43: 0.05 | G43: P/E | I43: =O44/O40 -> 31.3028169 | J43: =I39/O40 -> 18.30366361 | K43: =I36 -> 10.09421313 | M43: Mcap Rs. Cr | O43: =O44*O39 -> 458368.4 | P43: =P44*P39 -> 676421.8251 | Q43: =RATE((OFFSET(B8,growth_phase_years,0)-TODAY())/365,0,-O43,P43) -> 0.1119077651 | R43: =R38*K44 -> 1426497.886 | S43: 0.05840729158
B44: Beta | C44: =beta -> 1.146078374 | E44: 1.1 | G44: P/B | I44: =O44/O41 -> 4.926891244 | J44: =I39/O41 -> 2.880895999 | K44: =I37/C28 -> 1.370982352 | M44: Price | O44: 1778 | P44: =OFFSET(R8,growth_phase_years,0) -> 2426.737642 | Q44: =xirr2((Q$45,OFFSET(E8,1,0,growth_phase_years,1),OFFSET(R8,growth_phase_years,0)),(Q$46,OFFSET(B8,1,0,growth_phase_years,1),OFFSET(B8,growth_phase_years,0))) -> 0.09883405566 | R44: =I37 -> 5117.717949 | S44: =IRR((Q45,E9:E27,R45)) -> 0.08321307429
B45: CAPM Disc Rate | C45: =C$43+C$44*C$42 -> 0.1445986435 | E45: =E$43+E$44*E$42 -> 0.116 | G45: P/S | I45: =O44/O42 -> 6.414141414 | J45: =I39/O42 -> 3.750534245 | Q45: =-O44 -> -1778 | R45: =I37+E28 -> 5388.037515
B46: Div Dist Tax | C46: 0.1 | G46: Div Yield | I46: =E8/O44 -> 0.007423196614 | J46: =E8/I39 -> 0.01269510681 | K46: =E28/I37 -> 0.05282033293 | Q46: =TODAY() -> 2017-07-31
